fUSD/lending_fUSD_20241125
["ID","MTS","AMOUNT","RATE_DAILY","PERIOD"]
[343302114,1732549903717,-150.0,0.00044671,2]
[343302115,1732549903726,-31.35057026,0.00044676,7]
[343302116,1732549903738,-118.64942974,0.00044676,7]
[343302117,1732549903750,-150.0,0.00044681,7]
[343302118,1732549903760,-464.11874216,0.00044683,7]
[343302119,1732549903770,-150.0,0.00044686,2]
[343302120,1732549903779,-150.0,0.00044691,2]
[343302121,1732549903788,-150.0,0.00044698,2]
[343302122,1732549903798,-400.0,0.00044699,30]
[343302123,1732549903807,-241.47306362,0.00044699,2]
[343302124,1732549903817,-520.10722895,0.00044699,2]
[343302125,1732549903829,-371.63467524,0.00044699,2]
[343302126,1732549903841,-4106.77691045,0.00044699,2]
[343302127,1732549903850,-461.16111105,0.000447,2]
[343302128,1732549917265,-6108.0,0.0003,2]
[343302129,1732549917292,-3053.0,0.0003,2]
[343302130,1732549917318,-3053.0,0.0003,2]
[343302131,1732549917345,-3053.0,0.0003,2]
[343302132,1732549917370,-2733.0,0.0003,2]
[343302134,1732550014968,1001.0,0.00033,30]
[343302142,1732550059729,151.0,0.0003,120]
[343302146,1732550268026,5456.48509776,0.0003,120]
[343302147,1732550340916,6820.77337409,0.00033,30]
[343302151,1732550429686,162.38,0.00016712,2]
[343302154,1732550477624,-8295.46368874,0.000298,2]
[343302155,1732550477646,-300.0,0.00029899,2]
[343302156,1732550477669,-500.0,0.000299,2]
[343302157,1732550477691,-419.98267217,0.000299,2]
[343302158,1732550477714,-320.0,0.0003,2]
[343302159,1732550477736,-1701.0,0.0003,2]
[343302160,1732550477758,-1699.0,0.0003,2]
[343302161,1732550477782,-1699.0,0.0003,2]
[343302162,1732550477805,-1699.0,0.0003,2]
[343302163,1732550477828,-3057.0,0.0003,2]
[343302164,1732550477849,-167.04,0.00030046,2]
[343302165,1732550477877,-154.3,0.00030685,2]
[343302166,1732550477898,-250.0,0.00031,2]
[343302167,1732550477920,-420.0,0.00032228,2]
[343302168,1732550477941,-300.0,0.00033,2]
[343302169,1732550477964,-587.0,0.00034738,2]
[343302170,1732550477985,-350.0,0.00035,2]
[343302171,1732550478007,-2999.0,0.00035,5]
[343302172,1732550478030,-1930.38,0.0003523,2]
[343302173,1732550478053,-150.0,0.00035968,2]
[343302174,1732550478075,-169.761,0.00036658,46]
[343302175,1732550478100,-151.0,0.00036658,120]
[343302176,1732550478130,-2044.548,0.00036658,46]
[343302177,1732550478154,-500.0,0.00037,120]
[343302178,1732550478178,-500.0,0.00037,120]
[343302179,1732550478202,-738.6645318,0.00037,120]
[343302180,1732550478231,-500.0,0.00037,120]
[343302181,1732550478256,-712.22188775,0.00037,120]
[343302182,1732550478281,-871.08599302,0.00037,120]
[343302183,1732550478310,-400.0,0.00037,2]
[343302184,1732550478334,-600.0,0.00037,120]
[343302185,1732550478362,-500.0,0.00037,120]
[343302186,1732550478384,-500.0,0.00037,120]
[343302187,1732550478407,-600.0,0.00037,120]
[343302188,1732550478430,-722.29553309,0.00037,120]
[343302189,1732550478452,-600.0,0.00037,120]
[343302190,1732550478476,-600.0,0.00037,120]
[343302191,1732550478501,-600.0,0.00037,120]
[343302192,1732550478524,-600.0,0.00037,120]
[343302193,1732550478548,-600.0,0.00037,120]
[343302194,1732550478572,-600.0,0.00037,120]
[343302195,1732550478595,-600.0,0.00037,120]
[343302196,1732550478622,-600.0,0.00037,120]
[343302197,1732550478646,-600.0,0.00037,120]
[343302198,1732550478668,-653.29542659,0.00037,120]
[343302199,1732550478692,-150.99,0.00037,2]
[343302200,1732550478714,-756.03,0.00037,2]
[343302201,1732550478736,-567.74,0.00037,2]
[343302202,1732550478759,-4411.97,0.00037,2]
[343302203,1732550478783,-1991.55,0.00037,2]
[343302204,1732550478808,-154.3,0.00037329,2]
[343302205,1732550478830,-299.0,0.00037444,2]
[343302206,1732550478852,-1930.38,0.00037494,2]
[343302207,1732550478883,-250.0,0.00037682,2]
[343302208,1732550478908,-38620.0,0.00037683,10]
[343302209,1732550478931,-1026.33,0.0003778,2]
[343302210,1732550478954,-150.0,0.0003786,2]
[343302211,1732550478979,-3211.91751614,0.00038648,2]
[343302212,1732550479004,-153.09355162,0.00038648,2]
[343302213,1732550479027,-1000.0,0.00038648,2]
[343302214,1732550479052,-2500.0,0.00038648,2]
[343302215,1732550479074,-1016.71,0.00038729,10]
[343302216,1732550479097,-158.4,0.00038738,2]
[343302217,1732550479129,-158.4,0.00038738,2]
[343302218,1732550479153,-197987.7447,0.00038748,2]
[343302219,1732550479176,-392.24963008,0.00038748,2]
[343302220,1732550479199,-2007.95837494,0.00038838,2]
[343302221,1732550479224,-158.4,0.00038838,2]
[343302222,1732550479247,-158.4,0.00038838,2]
[343302223,1732550479270,-186.79478272,0.00038847,15]
[343302224,1732550479292,-597.0,0.00038848,5]
[343302225,1732550479315,-7295.0,0.00038848,4]
[343302226,1732550479341,-1335.0928,0.00038848,2]
[343302227,1732550479371,-688813.50991134,0.00038848,2]
[343302228,1732550659097,151.0,0.0003,120]
[343302229,1732550682840,151.0,0.0003,120]
[343302230,1732550710799,-548.768,0.00031555,2]
[343302231,1732550710821,-151.0,0.00033753,120]
[343302232,1732550710845,-151.0,0.00034603,120]
[343302233,1732550710865,-693.488336,0.00037319,2]
[343302234,1732550710885,-151.0,0.00037507,120]
[343302235,1732550710906,-862.99,0.00038108,2]
[343302236,1732550710926,-1555.85442594,0.00038139,2]
[343302237,1732550710947,-640.5,0.00038213,2]
[343302238,1732550710967,-874.42,0.00038213,2]
[343302239,1732550710988,-500.0,0.00038239,2]
[343302240,1732550711008,-2351.13,0.00038261,2]
[343302241,1732550711029,-1000.0,0.00038261,2]
[343302242,1732550711050,-250.0,0.000383,120]
[343302243,1732550711072,-166.8,0.00038309,2]
[343302244,1732550711096,-1555.85442592,0.0003847,2]
[343302245,1732550711117,-253.54,0.00038505,120]
[343302246,1732550711137,-309.8175,0.00038548,2]
[343302247,1732550711157,-17745.98,0.00038588,2]
[343302248,1732550711176,-256.4458,0.00038648,2]
[343302249,1732550711201,-573.9514,0.00038648,2]
[343302250,1732550711224,-171.92986567,0.00038748,120]
[343302251,1732550711244,-1555.85442592,0.000388,2]
[343302252,1732550711265,-439.86509982,0.00038838,2]
[343302253,1732550711285,-29856.71548866,0.00038848,2]
[343302254,1732550711304,-179.89667678,0.000389,12]
[343302255,1732550711329,-23900.0,0.00038971,2]
[343302256,1732550711350,-450.0,0.00039,2]
[343302257,1732550711371,-1932.77,0.00039134,2]
[343302258,1732550711398,-1932.77,0.00039144,2]
[343302259,1732550711419,-1932.77,0.00039154,2]
[343302260,1732550711443,-1932.77,0.00039165,2]
[343302261,1732550711465,-1932.77,0.00039175,2]
[343302262,1732550711487,-1932.77,0.00039185,2]
[343302263,1732550711508,-1932.77,0.00039196,2]
[343302264,1732550711529,-151.0,0.00039205,120]
[343302265,1732550711550,-1932.77,0.00039206,2]
[343302266,1732550711571,-1932.77,0.00039216,2]
[343302267,1732550711596,-1932.77,0.00039227,2]
[343302268,1732550711618,-1932.77,0.00039237,2]
[343302269,1732550711641,-1932.77,0.00039247,2]
[343302270,1732550711663,-1932.77,0.00039257,2]
[343302271,1732550711685,-1932.77,0.00039268,2]
[343302272,1732550711706,-1932.77,0.00039278,2]
[343302273,1732550711730,-1932.77,0.00039288,2]
[343302274,1732550711753,-1932.77,0.00039299,2]
[343302275,1732550711774,-1932.77,0.00039309,2]
[343302276,1732550711795,-1932.77,0.00039319,2]
[343302277,1732550711816,-1932.77,0.0003933,2]
[343302278,1732550711840,-548.768,0.00039354,2]
[343302279,1732550711980,-200.0,0.00039371,2]
[343302280,1732550712018,-6185.96004348,0.00039464,2]
[343302281,1732550712039,-1000.0,0.00039464,2]
[343302282,1732550712059,-2500.0,0.00039464,2]
[343302283,1732550712083,-1719.926,0.00039464,2]
[343302284,1732550712104,-359.75,0.00039554,3]
[343302285,1732550712125,-100000.0,0.00039564,2]
[343302286,1732550712144,-37966.9985,0.00039564,2]
[343302287,1732550712164,-500.0,0.000397,2]
[343302288,1732550712184,-10471.97455423,0.000397,30]
[343302289,1732550712207,-6185.96004346,0.00039735,2]
[343302290,1732550712230,-1930.38,0.00039758,2]
[343302291,1732550712252,-602.4985,0.00039888,7]
[343302292,1732550712273,-500.0,0.0004,30]
[343302293,1732550712295,-374.58291412,0.0004,30]
[343302294,1732550737423,1162.0,0.000184,2]
[343302295,1732550738118,1046.0,0.000184,2]
[343302296,1732550787721,67572.0,0.00033,30]
[343302554,1732550976985,7983.5372517,0.00030685,30]
[343302561,1732551032066,-156.97,0.00030685,2]
[343302562,1732551032075,-201.54436551,0.00031366,2]
[343302563,1732551032085,-164.27,0.00031466,2]
[343302564,1732551032094,-201.5443655,0.00032883,2]
[343302565,1732551032107,-201.5443655,0.000344,2]
[343302566,1732551032117,-364.783,0.000345,2]
[343302567,1732551032127,-150.0,0.00036789,2]
[343302568,1732551032137,-400.0,0.00036999,3]
[343302569,1732551032146,-203.0,0.00036999,2]
[343302570,1732551032155,-500.0,0.00037,120]
[343302571,1732551032164,-971.26882918,0.00037,120]
[343302572,1732551032174,-500.0,0.00037,120]
[343302573,1732551032183,-500.0,0.00037,120]
[343302574,1732551032192,-500.0,0.00037,120]
[343302575,1732551032201,-500.0,0.00037,120]
[343302576,1732551032211,-754.17754784,0.00037,120]
[343302577,1732551032222,-166.63519404,0.000372,103]
[343302578,1732551032233,-150.0,0.000378,7]
[343302579,1732551032244,-3718.61,0.00038326,2]
[343302580,1732551032254,-500.0,0.00038521,2]
[343302581,1732551032267,-3264.59,0.00038783,2]
[343302582,1732551032277,-250.0,0.00038877,2]
[343302583,1732551032286,-2000.0,0.00038948,2]
[343302584,1732551032296,-1500.0,0.00038948,120]
[343302585,1732551032306,-4439.5135,0.00039085,2]
[343302586,1732551032316,-200.0,0.00039355,2]
[343302587,1732551032326,-166.63519403,0.000394,116]
[343302588,1732551032336,-8804.71654985,0.00039464,2]
[343302589,1732551032353,-29162.28195015,0.00039464,2]
[343302590,1732551032363,-3220.01542111,0.00039464,2]
[343302591,1732551032374,-742.2,0.00039464,2]
[343302592,1732551032385,-513.38219973,0.00039464,2]
[343302593,1732551032397,-365.06759219,0.00039464,2]
[343302594,1732551032408,-1097.95352003,0.00039464,2]
[343302595,1732551032420,-2365.06986694,0.00039464,2]
[343302596,1732551032429,-525.36,0.00039464,2]
[343302597,1732551032439,-1000.0,0.00039464,2]
[343302598,1732551032449,-2500.0,0.00039464,2]
[343302599,1732551032458,-5806.74718654,0.000396,2]
[343302600,1732551032470,-3386.96851927,0.000396,2]
[343302601,1732551032480,-1852.42,0.00039649,2]
[343302602,1732551032489,-9193.71570577,0.00039856,15]
[343302603,1732551032499,-2641.22874491,0.000399,4]
[343302604,1732551032509,-822.4802,0.00039905,2]
[343302605,1732551032518,-27344.29989253,0.00039905,2]
[343302606,1732551032529,-16785.43050399,0.00039905,2]
[343302607,1732551032544,-9535.17963535,0.00039905,2]
[343302608,1732551032555,-4804.8,0.00039905,2]
[343302609,1732551032566,-11821.04586813,0.00039905,2]
[343302610,1732551032577,-125.41708588,0.0004,30]
[343302611,1732551032586,-500.0,0.0004,30]
[343302612,1732551032596,-500.0,0.0004,30]
[343302613,1732551032609,-600.0,0.0004,30]
[343302614,1732551032619,-500.0,0.0004,30]
[343302615,1732551032628,-600.0,0.0004,30]
[343302616,1732551032638,-600.0,0.0004,30]
[343302617,1732551032648,-600.0,0.0004,30]
[343302618,1732551032658,-600.0,0.0004,30]
[343302619,1732551032667,-600.0,0.0004,30]
[343302620,1732551032677,-600.0,0.0004,30]
[343302621,1732551032686,-600.0,0.0004,30]
[343302622,1732551032696,-937.28269441,0.0004,30]
[343302623,1732551032706,-600.0,0.0004,30]
[343302624,1732551032716,-600.0,0.0004,30]
[343302625,1732551032726,-600.0,0.0004,30]
[343302626,1732551032735,-500.0,0.0004,30]
[343302627,1732551032745,-600.0,0.0004,30]
[343302628,1732551032754,-600.0,0.0004,30]
[343302629,1732551032763,-500.0,0.0004,30]
[343302630,1732551032773,-500.0,0.0004,30]
[343302631,1732551032783,-500.0,0.0004,30]
[343302632,1732551032792,-500.0,0.0004,30]
[343302633,1732551032802,-500.0,0.0004,30]
[343302634,1732551032812,-500.0,0.0004,30]
[343302635,1732551032821,-500.0,0.0004,30]
[343302636,1732551032831,-500.0,0.0004,30]
[343302637,1732551032841,-838.3,0.0004,15]
[343302638,1732551032852,-500.0,0.0004,30]
[343302639,1732551032861,-500.0,0.0004,30]
[343302640,1732551032871,-500.0,0.0004,30]
[343302641,1732551032880,-500.0,0.0004,30]
[343302642,1732551032890,-999.99,0.0004,2]
[343302643,1732551032899,-14769.93,0.0004,30]
[343302644,1732551032909,-643.37,0.0004,2]
[343302645,1732551032919,-228.1,0.0004,15]
[343302646,1732551032928,-150.99,0.0004,2]
[343302647,1732551032938,-406.59,0.0004,2]
[343302648,1732551032948,-1600.0,0.0004,2]
[343302649,1732551032957,-14884.8246,0.0004,2]
[343302650,1732551032967,-1001.85,0.0004,2]
[343302651,1732551032977,-5092.58,0.00040005,2]
[343302652,1732551032986,-4205.65,0.00040005,30]
[343302653,1732551032996,-2462.77,0.00040005,2]
[343302654,1732551033006,-150.99,0.00040005,30]
[343302655,1732551033017,-299.99,0.00040005,120]
[343302656,1732551033027,-223.30541121,0.00040092,28]
[343302657,1732551033037,-9193.71570577,0.00040111,15]
[343302658,1732551033047,-874.42,0.00040124,2]
[343302659,1732551033057,-238.32,0.00040181,120]
[343302660,1732551033067,-450.0,0.00040181,2]
[343302661,1732551033076,-76865.0,0.00040184,2]
[343302662,1732551033086,-166.8,0.00040192,2]
[343302663,1732551033096,-150.0,0.00040282,2]
[343302664,1732551033113,-629.0,0.00040282,2]
[343302665,1732551033126,-482.906,0.00040282,2]
[343302666,1732551033136,-314.276,0.00040282,2]
[343302667,1732551033146,-300.0,0.00040311,2]
[343302668,1732551033155,-223.3054112,0.0004035,28]
[343302669,1732551033165,-23900.0,0.00040352,2]
[343302670,1732551033174,-9193.71570577,0.00040367,15]
[343302671,1732551033184,-179.89667676,0.000404,14]
[343302672,1732551033193,-223.3054112,0.00040609,28]
[343302673,1732551033204,-9193.71570577,0.00040622,15]
[343302674,1732551033214,-501.69398799,0.00040744,5]
[343302675,1732551033224,-377.88939218,0.000408,2]
[343302676,1732551033234,-250.43444613,0.00040873,5]
[343302677,1732551033244,-500.0,0.00040873,2]
[343302678,1732551033254,-9193.71570577,0.00040878,15]
[343302679,1732551033266,-377.88939206,0.00040879,2]
[343302680,1732551033276,-223.08743754,0.0004089,7]
[343302681,1732551033286,-154.11,0.0004089,2]
[343302682,1732551033297,-151.90919736,0.00040899,31]
[343302683,1732551033306,-266987.91816487,0.000409,2]
[343302684,1732551035423,-977.31,0.00039895,10]
[343302685,1732551035433,-150.0,0.00040124,2]
[343302686,1732551035443,-16560.82814,0.000409,2]
[343302687,1732551035455,-644.60222883,0.000409,2]
[343302688,1732551035466,-85690.0002,0.000409,2]
[343302689,1732551035478,-20805.073,0.000409,2]
[343302690,1732551035491,-4595.7572559,0.000409,2]
[343302691,1732551035502,-1209.496,0.000409,2]
[343302692,1732551035595,-404.0,0.00040124,2]
[343302693,1732551035610,-96.0,0.00040124,2]
[343302694,1732551035619,-4225.79265873,0.000409,2]
[343302695,1732551035631,-9732.82983115,0.000409,2]
[343302696,1732551035665,-3041.94714143,0.000409,2]
[343302697,1732551035676,-70797.43151186,0.000409,2]
[343302698,1732551035724,-8805.16672256,0.000409,2]
[343302699,1732551035735,-12271.64867051,0.000409,2]
[343302700,1732551035746,-1096.10478348,0.000409,2]
[343302702,1732551035764,-1703.61103245,0.000409,2]
[343302742,1732551036646,-39423.66675823,0.000409,2]
[343302743,1732551036656,-1000.0,0.000409,14]
[343302744,1732551036666,-377.88939206,0.00040957,2]
[343302745,1732551036676,-250.0,0.0004096,2]
[343302746,1732551036686,-2682.77,0.0004096,2]
[343302747,1732551036695,-22122.60647786,0.00041,2]
[343302748,1732551036706,-750.37477044,0.00041,2]
[343302749,1732551036718,-500.85641229,0.00041,2]
[343302757,1732551038117,-500.0,0.00040311,2]
[343302758,1732551038128,-223.3054112,0.00040867,28]
[343302759,1732551038137,-8138.87858196,0.00041,2]
[343302760,1732551038149,-935.77684801,0.00041,2]
[343302761,1732551038454,-2467.05761056,0.00041,2]
[343302762,1732551038466,-4808.55,0.00041,2]
[343302763,1732551038521,-12985.4388145,0.00041,2]
[343302764,1732551038535,-8355.461751,0.00041,2]
[343302765,1732551038547,-2385.47819203,0.00041,2]
[343302766,1732551038559,-1592.42457867,0.00041,2]
[343302767,1732551038570,-323.79921957,0.00041,2]
[343302768,1732551038592,-4699.45078869,0.00041,2]
[343302769,1732551038607,-2642.87674843,0.00041,2]
[343302777,1732551041748,-545.0880455,0.00040939,2]
[343302778,1732551041758,-290.65700408,0.00040939,2]
[343302779,1732551041768,-676.35337766,0.00041,2]
[343302780,1732551041780,-2882.44000001,0.00041,2]
[343302781,1732551041800,-150.0,0.000408,2]
[343302782,1732551041809,-856.14319976,0.00041,2]
[343302783,1732551041820,-363.80634851,0.00041,2]
[343302784,1732551041831,-265.89950011,0.00041,2]
[343302790,1732551042169,-415.43664447,0.00041,2]
[343302792,1732551042187,-500.0,0.00040744,5]
[343302793,1732551042197,-464.44348,0.00041,2]
[343302794,1732551042832,-14.76694239,0.0004096,2]
[343302803,1732551043145,-675.60039227,0.0004096,2]
[343302804,1732551043157,-335.67855495,0.0004096,2]
[343302806,1732551043216,-3433.73411039,0.0004096,2]
[343302808,1732551043225,-9102.2475788,0.00041,2]
[343302811,1732551043294,-500.0,0.00040878,15]
[343302812,1732551043306,-12264.19907667,0.00041,2]
[343302813,1732551043314,-500.0,0.00041,2]
[343302814,1732551043323,-377.88939206,0.00041036,2]
[343302815,1732551043332,-253.54,0.00041089,120]
[343302816,1732551043343,-382.86,0.00041096,2]
[343302817,1732551043351,-150.55,0.00041096,2]
[343302818,1732551043372,-166.83445429,0.00041096,2]
[343302819,1732551043383,-248.0,0.00041096,2]
[343302820,1732551043392,-2100.0,0.000411,15]
[343302821,1732551043400,-377.88939206,0.00041114,2]
[343302822,1732551043408,-223.3054112,0.00041125,28]
[343302823,1732551043418,-9193.71570577,0.00041133,15]
[343302824,1732551043427,-3200.0,0.000412,15]
[343302825,1732551043436,-151.0,0.0004126,120]
[343302826,1732551043445,-165.96371932,0.00041289,15]
[343302827,1732551043454,-4300.0,0.000413,15]
[343302828,1732551043463,-156.97,0.00041315,2]
[343302829,1732551043472,-105.91075863,0.00041389,15]
[343302830,1732551043484,-4644.3549722,0.00041389,15]
[343302831,1732551043499,-1000.00587437,0.00041389,15]
[343302832,1732551043510,-3443.44410057,0.00041389,15]
[343302833,1732551043519,-652.91788102,0.000414,15]
[343302834,1732551043568,-3007.59397427,0.000414,15]
[343302879,1732551046173,-1170.63912805,0.00040267,2]
[343302880,1732551046184,-1159.79844028,0.00040267,2]
[343302881,1732551046195,-169.56243167,0.00040267,2]
[343302883,1732551046205,-150.0,0.00040551,2]
[343302885,1732551046214,-377.88939206,0.00041193,2]
[343302887,1732551046223,-223.3054112,0.00041383,28]
[343302888,1732551046232,-1639.48814471,0.000414,15]
[343302890,1732551046241,-1000.0,0.00041421,2]
[343302892,1732551046250,-840.42,0.0004147,10]
[343302894,1732551046260,-29813.28358069,0.0004148,2]
[343302898,1732551046317,-70186.71641931,0.0004148,2]
[343302899,1732551046327,-500.0,0.0004148,2]
[343302900,1732551046336,-1600.0,0.0004148,2]
[343302901,1732551046346,-1001.85,0.0004148,2]
[343302902,1732551046358,-1000.0,0.000415,15]
[343302903,1732551046370,-158.8,0.00041508,2]
[343302904,1732551046380,-1000.0,0.000416,15]
[343302905,1732551046390,-150.0,0.00041643,2]
[343302906,1732551046399,-9193.71570577,0.00041644,15]
[343302907,1732551046409,-393.42793554,0.000417,15]
[343302908,1732551046420,-325.65719181,0.000417,15]
[343302909,1732551046444,-280.91487265,0.000417,15]
[343302910,1732551046453,-15702.93419147,0.000417,7]
[343302911,1732551046484,-500.0,0.00041,2]
[343302912,1732551046494,-33074.6532,0.000417,7]
[343302913,1732551046518,-26162.31279257,0.000417,7]
[343302914,1732551046528,-346.02859058,0.000417,7]
[343302915,1732551046626,-7059.3,0.000417,7]
[343302921,1732551191318,2000.0,0.00033,30]
[343302922,1732551248900,5000.0,0.00033,30]
[343302923,1732551388622,350.3,0.0002011,2]
[343302925,1732551457881,-196.16318135,0.00038975,114]
[343302926,1732551465001,-2000.0,0.000378,30]
[343302927,1732551470844,246.0,0.00039,60]
[343302928,1732551483434,200.0,0.00038544,60]
[343302929,1732551495652,151.0,0.0003,120]
[343302930,1732551496330,151.0,0.00034,120]
[343302931,1732551496869,151.0,0.00038,120]
[343302932,1732551502488,250.0,0.00038478,120]
[343302934,1732551543160,200.0,0.00038491,60]
[343302935,1732551648750,809.34,0.00038037,120]
[343302937,1732551662686,200.0,0.00038171,30]
[343302938,1732551664624,150.0,0.00039,60]
[343302939,1732551664960,150.0,0.00039,30]
[343302940,1732551665294,150.0,0.00033,30]
[343302941,1732551665661,150.0,0.0003,120]
[343302942,1732551665970,150.0,0.000271,120]
[343302943,1732551722666,200.0,0.0003798,30]
[343302944,1732551735990,500.0,0.00037,120]
[343302945,1732551753521,196.16318133,0.000372,103]
[343302947,1732551842647,200.0,0.000377,30]
[343302948,1732551849767,175.76,0.00038743,91]
[343302949,1732551897078,998.39920049,0.00039,60]
[343302950,1732551902730,200.0,0.00037672,30]
[343302951,1732551908361,800.0,0.00013,2]
[343302952,1732551908399,800.0,0.00013,2]
[343302953,1732551908424,800.0,0.00013,2]
[343302954,1732551908448,800.0,0.00013,2]
[343302955,1732551908473,150.0,0.00013,2]
[343302956,1732551908506,93679.32,0.00013,2]
[343302957,1732551908541,38815.0,0.00013,2]
[343302958,1732551908576,462350.03397321,0.00013,2]
[343302959,1732551935057,24321.44443683,0.00039,60]
[343302960,1732551935087,24092.43318135,0.00039,60]
[343302964,1732551970063,223.10877437,0.000199,3]
[343302966,1732551981552,151.0,0.0003,120]
[343302967,1732551986766,-330.80433989,0.00025,10]
[343302968,1732551986787,-150.0,0.00029973,2]
[343302969,1732551986808,-164.27,0.0003043,2]
[343302970,1732551986830,-159.98,0.00030685,2]
[343302971,1732551986851,-250.0,0.00031,2]
[343302972,1732551994730,-248.711,0.000312,2]
[343302973,1732551994750,-300.0,0.00033,2]
[343303014,1732552081737,410233.52279806,0.00013,2]
[343303022,1732552125305,207.519358,0.00028,60]
[343303027,1732552146307,386.0,0.00030878,30]
[343303034,1732552186286,-7180.0,0.00022,2]
[343303044,1732552232204,-1536.37129902,0.00022,2]
[343303045,1732552232213,-160.74009591,0.00023099,2]
[343303046,1732552232223,-160.74009591,0.000231,2]
[343303047,1732552232232,-200.0,0.00023199,2]
[343303048,1732552232242,-4960.94850916,0.000232,2]
[343303049,1732552232253,-2929.0,0.000232,2]
[343303050,1732552232264,-36838.15112325,0.000232,2]
[343303051,1732552232278,-1140.245922,0.00023922,2]
[343303052,1732552232288,-302.0,0.00025,7]
[343303053,1732552232297,-280.0,0.00025519,10]
[343303054,1732552232306,-500.0,0.00027667,2]
[343303055,1732552232316,-391.0,0.00028071,15]
[343303056,1732552232325,-968.5659626,0.00028215,2]
[343303057,1732552232335,-237.0,0.0002846,2]
[343303058,1732552232344,-237.0,0.0002958,2]
[343303059,1732552232354,-23661.80195006,0.000299,2]
[343303060,1732552232377,-3973.2703221,0.000299,2]
[343303061,1732552232388,-46767.28921122,0.000299,2]
[343303062,1732552232397,-237.0,0.0003069,2]
[343303063,1732552232406,-186.53325,0.00031371,2]
[343303064,1732552232415,-237.0,0.0003181,2]
[343303065,1732552232425,-3348.76656388,0.000325,2]
[343303066,1732552232435,-166.8,0.00032796,2]
[343303067,1732552232443,-237.0,0.0003292,2]
[343303068,1732552232453,-1000.0,0.00033016,2]
[343303069,1732552232462,-500.0,0.00033046,2]
[343303070,1732552232471,-3868.53,0.00033046,2]
[343303071,1732552232480,-1802.63,0.0003313,2]
[343303072,1732552232489,-812.78,0.00033264,2]
[343303073,1732552232498,-250.0,0.00033477,120]
[343303074,1732552232507,-3605.36,0.00033583,2]
[343303075,1732552232516,-237.0,0.0003403,2]
[343303076,1732552232528,-151.0,0.00034274,120]
[343303077,1732552232538,-1802.63,0.00034787,2]
[343303078,1732552232547,-350.0,0.00035,2]
[343303079,1732552232556,-3922.0434559,0.00035,10]
[343303080,1732552232565,-5594.39319386,0.0003505,2]
[343303081,1732552232574,-237.0,0.0003515,2]
[343303082,1732552232584,-2517.5,0.0003518,2]
[343303083,1732552232596,-5594.39319383,0.00035811,2]
[343303084,1732552232828,-23900.0,0.00036179,2]
[343303085,1732552232844,-237.0,0.0003626,2]
[343303086,1732552232854,-1802.63,0.00036443,2]
[343303087,1732552232864,-5594.39319383,0.00036572,2]
[343303088,1732552232874,-400.0,0.00037,2]
[343303089,1732552232884,-23944.85310961,0.00037,2]
[343303090,1732552232893,-500.0,0.00037,120]
[343303091,1732552232903,-690.96,0.00037,2]
[343303092,1732552232912,-150.99,0.00037,2]
[343303093,1732552232921,-3082.75,0.00037,2]
[343303094,1732552232930,-2751.0,0.00037004,120]
[343303095,1732552232939,-200.0,0.00037035,2]
[343303096,1732552232949,-250.0,0.0003705,2]